fUST/lending_fUST_20251118
["ID","MTS","AMOUNT","RATE_DAILY","PERIOD"]
[394303827,1763436310904,162.736197,0.00038233,40]
[394303828,1763436311139,353.583509,0.00038233,40]
[394303829,1763436311424,353.583509,0.00038233,40]
[394303830,1763436311731,353.583509,0.00038233,40]
[394303831,1763436312039,353.583509,0.00038233,40]
[394303832,1763436312343,353.583509,0.00038233,40]
[394303833,1763436312692,353.583509,0.00038233,40]
[394303834,1763436313023,353.583509,0.00038233,40]
[394303835,1763436313355,353.583509,0.00038233,40]
[394303836,1763436313657,353.583509,0.00038233,40]
[394303837,1763436313987,353.583509,0.00038233,40]
[394303838,1763436314291,353.583509,0.00038233,40]
[394303839,1763436314606,353.583509,0.00038233,40]
[394303840,1763436314925,353.583509,0.00038233,40]
[394303841,1763436315260,353.583509,0.00038233,40]
[394303842,1763436315598,353.583509,0.00038233,40]
[394303843,1763436315912,353.583509,0.00038233,40]
[394303844,1763436316227,353.583509,0.00038233,40]
[394303845,1763436316567,353.583517,0.00038233,40]
[394303846,1763436324774,152.743314,0.00038233,40]
[394303847,1763436336147,-156.35001634,0.00024107,2]
[394303848,1763436336168,-65.61692673,0.00024244,2]
[394303853,1763436425165,-101.05103369,0.00024244,2]
[394303854,1763436425212,-151.13690597,0.00031842,10]
[394303855,1763436425257,-252.702433,0.00034694,120]
[394303856,1763436425301,-292.27435788,0.00034787,120]
[394303857,1763436425345,-1600.0,0.00034887,3]
[394303858,1763436425400,-400.0,0.00034887,2]
[394303859,1763436425467,-151.61506228,0.00034888,2]
[394303860,1763436442083,-1718.84523638,0.00034888,2]
[394303868,1763436524939,6922.22392192,0.00038233,30]
[394303898,1763436551130,-390.66999998,0.0002,2]
[394303899,1763436551151,-5116.03009692,0.00024142,2]
[394303900,1763436551169,-196.57400009,0.00024774,2]
[394303901,1763436551189,-576.55289055,0.000252,5]
[394303902,1763436551224,-178.50143904,0.00029,10]
[394303903,1763436551245,-348.61055772,0.00033999,2]
[394303904,1763436556121,-51.38944228,0.00033999,2]
[394303905,1763436556140,-1012.41960092,0.00034,2]
[394303906,1763436556158,-1903.48231645,0.00034888,2]
[394303910,1763436603125,239.0,0.00018,2]
[394303961,1763436632632,-776.73440119,0.00034888,2]
[394303962,1763436632642,-610.94909855,0.00035258,3]
[394303970,1763436638706,-989.05090145,0.00035258,3]
[394303971,1763436638715,-285.1442965,0.00036092,2]
[394303972,1763436638725,-1600.0,0.0003649,3]
[394303973,1763436638734,-400.0,0.00036491,3]
[394303974,1763436638743,-200.0,0.00036491,2]
[394303975,1763436638753,-353.52122179,0.00036491,3]
[394303976,1763436638765,-46.47877821,0.00036491,3]
[394303977,1763436638774,-208.94202181,0.0003682,2]
[394303978,1763436638784,-400.0,0.00037523,3]
[394303979,1763436638796,-17.92919998,0.0003755,2]
[394303980,1763436638808,-922.07397902,0.0003755,2]
[394303981,1763436638818,-13068.41217835,0.0003755,2]
[394303982,1763436638827,-773.0,0.00037794,3]
[394303983,1763436638838,-500.0,0.00037794,2]
[394303984,1763436638848,-2000.0,0.00038233,20]
[394303985,1763436638858,-756.79809289,0.00038233,20]
[394303986,1763436638867,-197.7206459,0.00038496,2]
[394303987,1763436638878,-3460.73141309,0.00038497,2]
[394303988,1763436638888,-507.15368429,0.00038573,5]
[394303989,1763436638897,-500.0,0.00038573,5]
[394303990,1763436638907,-437.501176,0.00038573,5]
[394303991,1763436638916,-403.81238614,0.00038587,15]
[394303992,1763436638925,-500.0,0.00038587,15]
[394303993,1763436638934,-500.0,0.00038587,15]
[394303994,1763436638945,-500.0,0.00038587,7]
[394303995,1763436638954,-500.0,0.00038587,15]
[394303996,1763436638964,-500.0,0.00038587,15]
[394303997,1763436638975,-500.0,0.00038587,15]
[394303998,1763436638986,-500.0,0.00038587,15]
[394303999,1763436638996,-500.0,0.00038587,15]
[394304000,1763436639006,-500.0,0.00038587,15]
[394304001,1763436639017,-500.0,0.00038587,7]
[394304002,1763436639028,-500.0,0.00038587,15]
[394304003,1763436639038,-500.0,0.00038587,15]
[394304004,1763436639050,-368.9414373,0.00038587,15]
[394304005,1763436639061,-500.0,0.00038587,7]
[394304006,1763436639071,-500.0,0.00038587,15]
[394304007,1763436639082,-500.0,0.00038587,15]
[394304008,1763436639091,-563.02376917,0.00038587,15]
[394304009,1763436639101,-550.63367363,0.00038587,7]
[394304010,1763436639111,-295.24820294,0.00038587,15]
[394304011,1763436639121,-500.0,0.00038587,15]
[394304012,1763436639130,-500.0,0.00038587,15]
[394304013,1763436639140,-500.0,0.00038587,15]
[394304014,1763436639150,-500.0,0.00038587,15]
[394304015,1763436639161,-500.0,0.00038587,15]
[394304016,1763436639171,-500.0,0.00038587,15]
[394304017,1763436639181,-500.0,0.00038587,15]
[394304018,1763436639194,-500.0,0.00038587,15]
[394304019,1763436639205,-500.0,0.00038587,15]
[394304020,1763436639216,-500.0,0.00038587,15]
[394304021,1763436639225,-500.0,0.00038587,15]
[394304022,1763436639234,-500.0,0.00038587,15]
[394304023,1763436639244,-2097.62,0.00038588,10]
[394304024,1763436639253,-9259.94174613,0.00038588,3]
[394304025,1763436639264,-49703.74937574,0.00038598,2]
[394304058,1763436640696,-1243.43748166,0.00038588,10]
[394304130,1763436644019,-504.58251834,0.00038588,10]
[394304132,1763436644030,-14390.75458933,0.00038598,2]
[394304134,1763436644041,-154.196713,0.00038598,120]
[394304136,1763436644052,-151.0,0.00038598,120]
[394304138,1763436644061,-171.259007,0.00038598,120]
[394304140,1763436644070,-170.002032,0.00038598,120]
[394304142,1763436644080,-151.0,0.00038598,120]
[394304144,1763436644089,-153.145282,0.00038598,120]
[394304146,1763436644098,-77.48891803,0.00038598,120]
[394304151,1763436644140,-14.64989226,0.00038598,120]
[394304541,1763436647039,-58.86118971,0.00038598,120]
[394304544,1763436647049,-151.0,0.00038598,120]
[394304547,1763436647062,-153.99893,0.00038598,120]
[394304550,1763436647070,-151.0,0.00038598,120]
[394304553,1763436647078,-151.0,0.00038598,120]
[394304556,1763436647087,-152.430447,0.00038598,120]
[394304558,1763436647097,-151.0,0.00038598,120]
[394304560,1763436647106,-300.452852,0.00038598,120]
[394304564,1763436647115,-151.0,0.00038598,120]
[394304566,1763436647124,-299.53877,0.00038598,120]
[394304569,1763436647134,-151.206321,0.00038598,120]
[394304572,1763436647143,-151.0,0.00038598,120]
[394304576,1763436647154,-218.81,0.000386,7]
[394304579,1763436647162,-192.737,0.00038694,52]
[394304582,1763436647172,-152.196406,0.00038699,120]
[394304585,1763436647181,-4617.2406248,0.000387,2]
[394304589,1763436647190,-1246.130695,0.000387,2]
[394304593,1763436647199,-200.0,0.00039066,5]
[394304595,1763436647208,-1000.0,0.00039121,5]
[394304599,1763436647217,-1500.0,0.00039668,5]
[394304603,1763436647227,-197.7206459,0.00039698,2]
[394304606,1763436647237,-500.0,0.00039989,2]
[394304609,1763436647248,-3503.94677951,0.00039991,2]
[394304612,1763436647257,-212.2802131,0.00039991,2]
[394304617,1763436647276,-2844.26160988,0.00039991,2]
[394304620,1763436647288,-178.67004239,0.00039991,2]
[394304623,1763436647300,-321.60607631,0.00039991,2]
[394304626,1763436647316,-5045.68336249,0.00039991,2]
[394304629,1763436647329,-382.10438358,0.00039991,2]
[394304632,1763436647341,-282.41189649,0.00039991,2]
[394304635,1763436647351,-508.34141369,0.00039991,2]
[394304639,1763436647363,-151.0,0.00039991,15]
[394304642,1763436647374,-151.0,0.00039991,15]
[394304645,1763436647385,-152.98276,0.00039991,120]
[394304648,1763436647395,-151.844981,0.00039991,120]
[394304651,1763436647406,-153.175335,0.00039991,120]
[394304654,1763436647415,-151.0,0.00039991,120]
[394304657,1763436647424,-151.0,0.00039991,120]
[394304659,1763436647433,-151.0,0.00039991,120]
[394304661,1763436647443,-151.0,0.00039991,120]
[394304664,1763436647452,-571.74413566,0.00039991,2]
[394304667,1763436647461,-301.105307,0.00039991,120]
[394304670,1763436647470,-151.0,0.00039991,120]
[394304673,1763436647479,-154.246299,0.00039991,90]
[394304676,1763436647489,-151.0,0.00039991,120]
[394304679,1763436647499,-48.48327598,0.00039991,2]
[394304932,1763436737818,216.81499449,0.00024107,2]
[394304963,1763436927461,151.0,0.00038233,40]
[394304964,1763436927827,198.791047,0.00038233,40]
[394304972,1763436986913,151.0,0.00038233,40]
[394304973,1763436987527,151.0,0.00038233,40]
[394304974,1763436987845,151.0,0.00038233,40]
[394304975,1763436988169,151.0,0.00038233,40]
[394304976,1763436988514,151.0,0.00038233,40]
[394304977,1763436988840,151.0,0.00038233,40]
[394304978,1763436989152,151.0,0.00038233,40]
[394304979,1763436989765,162.59305532,0.00038233,40]
[394304987,1763437010892,164.060673,0.00038233,20]
[394304988,1763437026550,151.0,0.00038233,40]
[394304989,1763437026882,151.0,0.00038233,40]
[394304990,1763437027191,151.0,0.00038233,40]
[394304991,1763437027492,151.0,0.00038233,40]
[394304992,1763437027795,157.561503,0.00038233,40]
[394304998,1763437047478,151.0,0.00038233,40]
[394305015,1763437547095,-1021.63002325,0.00029508,2]
[394305016,1763437547115,-162.79095174,0.00029873,2]
[394305017,1763437547134,-162.62571034,0.00029973,37]
[394305018,1763437547151,-162.79095172,0.00033855,2]
[394305019,1763437547171,-1563.8054865,0.00034265,2]
[394305020,1763437547190,-999.0,0.00034526,2]
[394305021,1763437547208,-717.99413288,0.00034735,2]
[394305026,1763437627117,-97.06008758,0.00034735,2]
[394305027,1763437627137,-90.23352475,0.00034979,2]
[394305029,1763437635071,-2263.1286084,0.00034979,2]
[394305030,1763437635090,-1600.0,0.00035259,3]
[394305031,1763437635110,-156.66271637,0.00035327,2]
[394305032,1763437635130,-206.0,0.00036138,3]
[394305033,1763437635149,-440.4335205,0.0003614,30]
[394305034,1763437635170,-2894.36900812,0.00036255,2]
[394305035,1763437635190,-742.94975617,0.0003682,2]
[394305036,1763437645089,-239.22631898,0.0003682,2]
[394305037,1763437654086,-732.69670164,0.0003682,2]
[394305038,1763437654110,-535.87347451,0.0003682,2]
[394305064,1763437746065,-1331.75032296,0.00034979,2]
[394305067,1763437757080,-1986.98148657,0.00034979,2]
[394305110,1763437831811,-516.2898693,0.00037223,2]
[394305111,1763437831822,-500.0,0.00037549,30]
[394305112,1763437831832,-422.57707704,0.00037549,30]
[394305113,1763437831841,-978.0,0.00037836,3]
[394305114,1763437831853,-162.79095172,0.00037837,2]
[394305115,1763437831863,-300.0,0.00037934,2]
[394305116,1763437831872,-500.0,0.00037935,15]
[394305117,1763437831880,-500.0,0.00037935,15]
[394305118,1763437831889,-500.0,0.00037935,15]
[394305119,1763437831898,-500.0,0.00037935,7]
[394305121,1763437831908,-500.0,0.00037935,15]
[394305122,1763437831919,-500.0,0.00037935,15]
[394305123,1763437831928,-500.0,0.00037935,15]
[394305124,1763437831938,-651.27653954,0.00037935,15]
[394305125,1763437831946,-500.0,0.00037935,7]
[394305126,1763437831955,-500.0,0.00037935,15]
[394305127,1763437831966,-500.0,0.00037935,15]
[394305128,1763437831975,-481.07104756,0.00037935,15]
[394305129,1763437831984,-201.3348851,0.00037935,15]
[394305130,1763437831993,-500.0,0.00037935,15]
[394305131,1763437832002,-13.2294133,0.00037935,7]
[394305171,1763437837620,-325.76237576,0.00037935,7]
[394305178,1763437837675,-161.00821094,0.00037935,7]
[394305180,1763437837684,-500.0,0.00037935,15]
[394305182,1763437837693,-500.0,0.00037935,15]
[394305184,1763437837702,-255.02757811,0.00037935,15]
[394305186,1763437837712,-500.0,0.00037935,15]
[394305187,1763437837721,-500.0,0.00037935,7]
[394305189,1763437837730,-500.0,0.00037935,15]
[394305191,1763437837739,-500.0,0.00037935,15]
[394305193,1763437837749,-500.0,0.00037935,15]
[394305195,1763437837758,-500.0,0.00037935,15]
[394305197,1763437837768,-500.0,0.00037935,7]
[394305199,1763437837779,-393.98325493,0.00037935,15]
[394305202,1763437837790,-106.01674507,0.00037935,15]
[394305204,1763437837799,-472.98658728,0.00037935,15]
[394305206,1763437837808,-343.48819371,0.00037935,7]
[394305208,1763437837819,-156.51180629,0.00037935,7]
[394305210,1763437837828,-500.0,0.00037935,15]
[394305213,1763437837837,-326.08819371,0.00037935,15]
[394305216,1763437837848,-173.91180629,0.00037935,15]
[394305219,1763437837858,-500.0,0.00037935,15]
[394305222,1763437837867,-500.0,0.00037935,7]
[394305225,1763437837877,-500.0,0.00037935,15]
[394305228,1763437837886,-500.0,0.00037935,15]
[394305231,1763437837895,-500.0,0.00037935,7]
[394305234,1763437837904,-500.0,0.00037935,15]
[394305237,1763437837913,-500.0,0.00037935,7]
[394305239,1763437837922,-500.0,0.00037935,15]
[394305241,1763437837931,-500.0,0.00037935,7]
[394305243,1763437837940,-500.0,0.00037935,15]
[394305245,1763437837948,-500.0,0.00037935,7]
[394305247,1763437837957,-492.90866476,0.00037935,15]
[394305249,1763437837966,-589.10930936,0.00037935,7]
[394305251,1763437837975,-500.0,0.00037935,15]
[394305253,1763437837983,-500.0,0.00037935,15]
[394305255,1763437837993,-500.0,0.00037935,15]
[394305257,1763437838002,-500.0,0.00037935,15]
[394305259,1763437838010,-500.0,0.00037935,7]
[394305261,1763437838019,-500.0,0.00037935,15]
[394305263,1763437838028,-500.0,0.00037935,15]
[394305265,1763437838037,-500.0,0.00037935,7]
[394305267,1763437838046,-500.0,0.00037935,7]
[394305269,1763437838056,-500.0,0.00037935,15]
[394305271,1763437838065,-500.0,0.00037935,7]
[394305273,1763437838074,-500.0,0.00037935,15]
[394305275,1763437838082,-500.0,0.00037935,7]
[394305277,1763437838091,-500.0,0.00037935,15]
[394305278,1763437838101,-500.0,0.00037935,7]
[394305280,1763437838110,-500.0,0.00037935,15]
[394305282,1763437838120,-500.0,0.00037935,15]
[394305284,1763437838129,-500.0,0.00037935,7]
[394305287,1763437838139,-500.0,0.00037935,15]
[394305289,1763437838149,-500.0,0.00037935,15]
[394305291,1763437838158,-500.0,0.00037935,15]
[394305293,1763437838168,-500.0,0.00037935,7]
[394305295,1763437838178,-500.0,0.00037935,15]
[394305296,1763437838187,-616.11122574,0.00037935,15]
[394305297,1763437838196,-499.99999999,0.00037935,15]
[394305298,1763437838206,-9000.13079969,0.00037935,2]
[394305299,1763437838217,-5948.17457785,0.00037935,2]
[394305300,1763437838226,-500.0,0.00037937,15]
[394305301,1763437838235,-16718.66483566,0.00037938,2]
[394305302,1763437838244,-159.329823,0.00037938,30]
[394305303,1763437838253,-151.0,0.00037938,31]
[394305304,1763437838268,-188.553408,0.00037938,31]
[394305305,1763437838288,-151.859612,0.00037938,31]
[394305306,1763437838298,-151.0,0.00037938,31]
[394305307,1763437838307,-151.491077,0.00037938,31]
[394305308,1763437838316,-153.003508,0.00037938,31]
[394305309,1763437838325,-158.700791,0.00037938,31]
[394305310,1763437838335,-151.734043,0.00037938,31]
[394305311,1763437838344,-151.0,0.00037938,31]
[394305312,1763437838353,-152.337487,0.00037938,31]
[394305313,1763437838362,-156.820554,0.00037938,31]
[394305314,1763437838372,-151.0,0.00037938,31]
[394305315,1763437838381,-195.765928,0.00037938,31]
[394305316,1763437838390,-152.984656,0.00037938,31]
[394305317,1763437838400,-153.524911,0.00037938,31]
[394305318,1763437838409,-153.654188,0.00037938,31]
[394305319,1763437838419,-500.0,0.00037973,5]
[394305320,1763437838430,-500.0,0.00037973,5]
[394305321,1763437838439,-440.45928904,0.00037973,5]
[394305322,1763437838449,-500.0,0.00037973,5]
[394305323,1763437838547,-500.0,0.00037973,5]
[394305324,1763437838559,-10541.0,0.00038,30]
[394305325,1763437838569,-724.1923,0.00038,30]
[394305326,1763437838580,-316.0,0.00038122,2]
[394305327,1763437838590,-500.0,0.00038211,15]
[394305328,1763437838604,-151.0,0.00038227,2]
[394305329,1763437838614,-151.0,0.00038227,2]
[394305330,1763437838624,-151.0,0.00038227,2]
[394305331,1763437838634,-194.72792766,0.00038227,2]
[394305332,1763437838644,-203.53124725,0.00038227,2]
[394305333,1763437838653,-500.0,0.00038232,2]
[394305334,1763437838663,-163.32186826,0.00038233,40]
[394305335,1763437838677,-1578.81,0.00038237,10]
[394305336,1763437838686,-1894.57,0.00038239,10]
[394305337,1763437838695,-151.0,0.00038239,31]
[394305338,1763437838704,-151.0,0.0003824,31]
[394305339,1763437838714,-8816.56147917,0.0003824,3]
[394305340,1763437838724,-151.0,0.00038247,15]
[394305341,1763437838734,-151.0,0.00038247,15]
[394305342,1763437838743,-151.0,0.00038247,31]
[394305343,1763437838752,-259.182082,0.00038247,31]
[394305344,1763437838762,-156.947223,0.00038247,31]
[394305345,1763437838772,-157.23586988,0.00038247,15]
[394305346,1763437838782,-151.0,0.00038247,15]
[394305347,1763437838792,-500.0,0.00038247,2]
[394305348,1763437838802,-500.0,0.00038247,2]
[394305349,1763437838812,-153.483476,0.00038248,31]
[394305350,1763437838822,-201.348,0.00038248,51]
[394305351,1763437838831,-151.0,0.00038248,15]
[394305352,1763437838841,-153.86897285,0.00038248,15]
[394305353,1763437838850,-152.20765515,0.00038248,2]
[394305354,1763437838860,-151.0,0.00038249,31]
[394305355,1763437838869,-153.144396,0.00038249,31]
[394305356,1763437838878,-154.100513,0.00038249,31]
[394305357,1763437838887,-500.0,0.00038249,2]
[394305358,1763437838897,-500.0,0.00038249,2]
[394305359,1763437838906,-500.0,0.00038249,2]
[394305360,1763437838915,-151.0,0.00038249,31]
[394305361,1763437838924,-500.0,0.00038249,7]
[394305362,1763437838934,-248.66825134,0.00038249,15]
[394305363,1763437838944,-500.0,0.00038249,15]
[394305364,1763437838953,-500.0,0.00038249,7]
[394305365,1763437838963,-369.64177377,0.00038249,7]
[394305366,1763437838973,-500.0,0.00038249,7]
[394305367,1763437838982,-500.0,0.00038249,15]
[394305368,1763437838991,-450.01699595,0.00038249,15]
[394305369,1763437839001,-500.0,0.00038249,7]
[394305370,1763437839010,-500.0,0.00038249,15]
[394305371,1763437839019,-500.0,0.00038249,7]
[394305372,1763437839030,-151.0,0.0003825,31]
[394305373,1763437839039,-153.805453,0.0003825,31]
[394305374,1763437839049,-151.0,0.0003825,31]
[394305375,1763437839058,-151.0,0.0003825,31]
[394305376,1763437839068,-151.0,0.0003825,15]
[394305377,1763437839077,-151.0,0.0003825,15]
[394305378,1763437839087,-216.548691,0.0003825,15]
[394305379,1763437839096,-151.0,0.0003825,31]
[394305380,1763437839106,-151.0,0.0003825,31]
[394305381,1763437839116,-2541.2287435,0.0003825,2]
[394305382,1763437839175,-2460.82858118,0.0003825,2]
[394305383,1763437839185,-41466.25587638,0.0003825,2]
[394305384,1763437839196,-1073.38446062,0.0003825,2]
[394305385,1763437839207,-6542.6184597,0.0003825,2]
[394305386,1763437839219,-1366.93866443,0.0003825,2]
[394305387,1763437839228,-987.64639418,0.0003825,20]
[394305388,1763437839237,-5000.0,0.0003825,20]
[394305389,1763437839246,-500.0,0.00038273,5]
[394305390,1763437839255,-500.0,0.00038273,5]
[394305391,1763437839264,-500.0,0.00038273,5]
[394305392,1763437839274,-221.17986121,0.00038367,5]
[394305393,1763437839283,-218.43017098,0.00038384,15]
[394305394,1763437839293,-231.25143026,0.00038385,15]
[394305395,1763437839301,-151.368646,0.00038444,15]
[394305396,1763437839310,-197.2960427,0.00038521,5]
[394305397,1763437839319,-1000.0,0.00038521,5]
[394305398,1763437839328,-359.54,0.00038548,2]
[394305399,1763437839337,-1000.0,0.00038597,2]
[394305400,1763437839347,-1000.0,0.00038597,2]
[394305401,1763437839356,-1000.0,0.00038597,2]
[394305402,1763437839364,-1000.0,0.00038597,2]
[394305403,1763437839374,-1000.0,0.00038597,2]
[394305404,1763437839384,-1000.0,0.00038597,2]
[394305405,1763437839393,-500.0,0.00038674,2]
[394305406,1763437839401,-500.0,0.00038674,2]
[394305407,1763437839410,-500.0,0.00038674,2]
[394305409,1763437839419,-500.0,0.00038674,2]
[394305411,1763437839428,-500.0,0.00038674,2]
[394305413,1763437839437,-500.0,0.00038674,2]
[394305415,1763437839446,-500.0,0.00038674,2]
[394305417,1763437839455,-500.0,0.00038674,2]
[394305419,1763437839464,-250.0,0.00038674,2]
[394305421,1763437839472,-500.0,0.00038674,2]
[394305423,1763437839481,-250.0,0.00038674,2]
[394305425,1763437839490,-500.0,0.00038674,2]
[394305427,1763437839499,-250.0,0.00038674,2]
[394305429,1763437839508,-250.0,0.00038674,2]
[394305431,1763437839516,-250.0,0.00038674,2]
[394305433,1763437839526,-250.0,0.00038674,2]
[394305435,1763437839536,-263.22906739,0.00038674,2]
[394305437,1763437839545,-551.77850472,0.00038726,5]
[394305439,1763437839554,-500.0,0.00038757,2]
[394305440,1763437839564,-469.0,0.00038768,7]
[394305442,1763437839574,-209.40437685,0.00038775,2]
[394305444,1763437839582,-193.56030378,0.00038821,5]
[394305447,1763437839593,-1000.0,0.00038821,5]
[394305449,1763437839605,-163.170876,0.00038821,120]
[394305450,1763437839614,-753.0,0.00039091,7]
[394305452,1763437839624,-218.0,0.00039092,2]
[394305454,1763437839633,-469.0,0.00039187,2]
[394305456,1763437839644,-574.76866201,0.00039368,5]
[394305458,1763437839653,-469.0,0.00039399,2]
[394305460,1763437839662,-151.0,0.00039399,120]
[394305462,1763437839673,-151.0,0.00039399,15]
[394305464,1763437839682,-8816.56147917,0.00039511,3]
[394305466,1763437839691,-500.0,0.00039519,2]
[394305468,1763437839700,-539.41987686,0.0003952,2]
[394305470,1763437839709,-802.4855563,0.00039521,2]
[394305472,1763437839718,-38992.2297357,0.00039521,2]
[394305474,1763437839726,-151.0,0.00039521,120]
[394305476,1763437839736,-151.0,0.00039521,15]
[394305478,1763437839745,-1260.1245148,0.00039521,2]
[394305480,1763437839754,-501.21893165,0.00039573,5]
[394305482,1763437839763,-500.58449928,0.00039573,5]
[394305484,1763437839772,-500.0,0.00039573,5]
[394305486,1763437839782,-500.0,0.00039573,5]
[394305488,1763437839792,-578.14986455,0.00039573,5]
[394305490,1763437839801,-501.31858301,0.00039573,5]
[394305492,1763437839810,-501.3115562,0.00039573,5]
[394305494,1763437839819,-500.0,0.00039573,5]
[394305496,1763437839829,-500.0,0.00039573,5]
[394305498,1763437839838,-502.07370211,0.00039573,5]
[394305500,1763437839847,-501.11545329,0.00039573,5]
[394305502,1763437839856,-501.76205143,0.00039573,5]
[394305504,1763437839865,-502.39316866,0.00039573,5]
[394305506,1763437839874,-407.06515501,0.00039573,5]
[394305509,1763437839886,-112.54414098,0.00039573,5]
[394305511,1763437839895,-500.0,0.00039573,5]
[394305513,1763437839904,-500.0,0.00039573,5]
[394305514,1763437839913,-500.0,0.00039573,5]
[394305516,1763437839922,-500.0,0.00039573,5]
[394305518,1763437839931,-510.94764153,0.00039573,5]
[394305520,1763437839941,-236.60521683,0.00039573,5]
[394305527,1763437839988,-263.39478317,0.00039573,5]
[394305529,1763437839997,-251.62,0.0003969,24]
[394305530,1763437840006,-1984.99590286,0.00039859,2]
[394305533,1763437840017,-164.19041822,0.00039859,2]
[394305535,1763437840026,-1076.54744176,0.0003989,2]
[394305537,1763437840037,-1720.52230882,0.0003989,2]
[394305539,1763437840046,-275.0,0.00039952,2]
[394305541,1763437840055,-218.37917373,0.00039973,5]
[394305543,1763437840065,-150.0,0.00039973,5]
[394305545,1763437840074,-753.0,0.00039977,2]
[394305547,1763437840083,-17633.1229583,0.0003998,3]
[394305549,1763437840091,-151.0,0.00039981,120]
[394305551,1763437840100,-469.0,0.00039981,7]
[394305553,1763437840111,-38849.81304502,0.0003999,2]
[394305555,1763437840121,-3660.38859975,0.0003999,2]
[394305855,1763437843204,-4602.41534979,0.0003999,2]
[394306116,1763437846104,-20.81040137,0.0003825,20]
[394306130,1763437846242,-4209.49955301,0.0003825,20]
[394306132,1763437846253,-769.69004562,0.0003825,20]
[394306134,1763437846262,-1376.65577407,0.0003999,2]
[394306136,1763437846273,-4267.19078127,0.0003999,2]
[394306140,1763437846301,-1149.64568231,0.0003999,2]
[394306144,1763437846313,-24251.31037652,0.0003999,2]
[394306147,1763437846322,-1000.0,0.0003999,2]
[394306149,1763437846330,-150.0,0.0003999,2]
[394306151,1763437846339,-150.0,0.0003999,7]
[394306153,1763437846348,-150.0,0.0003999,7]
[394306155,1763437846357,-316.70651137,0.00039991,2]
[394306157,1763437846366,-902.81435071,0.00039991,2]
[394306159,1763437846375,-209.39815882,0.00039991,2]
[394306161,1763437846385,-154.271,0.00039991,120]
[394306163,1763437846394,-200.6,0.0004,7]
[394306165,1763437846403,-168.0,0.00040013,2]
[394306167,1763437846411,-168.0,0.00040081,2]
[394306169,1763437846420,-170.30715398,0.00040121,5]
[394306171,1763437846429,-501.5573906,0.00040121,5]
[394306173,1763437846438,-1000.0,0.00040121,5]
[394306175,1763437846447,-500.0,0.00040121,5]
[394306176,1763437846456,-1002.35121388,0.00040121,5]
[394306178,1763437846465,-1002.2241441,0.00040121,5]
[394306180,1763437846474,-1000.0,0.00040121,5]
[394306182,1763437846483,-1117.19245736,0.00040121,5]
[394306184,1763437846492,-1008.51454516,0.00040121,5]
[394306186,1763437846500,-275.0,0.00040296,2]
[394306188,1763437846509,-251.58,0.00040377,26]
[394306190,1763437846520,-754.74,0.00040387,26]
[394306192,1763437846529,-251.58,0.0004039,26]
[394306194,1763437846538,-252.702433,0.00040476,120]
[394306196,1763437846547,-151.22008676,0.00040521,5]
[394306198,1763437846556,-8816.56147917,0.00040667,3]
[394306200,1763437846566,-1315.67,0.00040667,10]
[394306201,1763437846575,-1500.0,0.00040668,5]
[394306203,1763437846584,-422.77259646,0.00040668,5]
[394306205,1763437846596,-159.36316277,0.00040673,5]
[394306207,1763437846605,-150.0,0.00040673,5]
[394306209,1763437846614,-182.94057288,0.00040673,5]
[394306220,1763437846706,-500.90490176,0.00040673,5]
[394306222,1763437846718,-503.30992201,0.00040673,5]
[394306224,1763437846727,-504.79673771,0.00040673,5]